bitfinex-derivatives/quotes_BTCF0:USTF0_20250608
["timestamp","ask_amount","ask_price","bid_price","bid_amount"]
[1749413960957,0.64949162,106300.0,106290.0,1.96627726]
[1749413961252,0.64949162,106300.0,106290.0,1.53943726]
[1749413961457,0.64949162,106300.0,106290.0,1.96627726]
[1749413962055,0.64949162,106300.0,106290.0,1.53943726]
[1749413962455,0.64949162,106300.0,106290.0,1.96627726]
[1749413963654,0.64949162,106300.0,106290.0,1.24561539]
[1749413963856,0.64949162,106300.0,106290.0,2.05433833]
[1749413964057,0.64949162,106300.0,106290.0,1.62749833]
[1749413964252,0.64949162,106300.0,106290.0,2.05433833]
[1749413964655,0.64949162,106300.0,106290.0,1.62749833]
[1749413965057,0.64949162,106300.0,106290.0,2.05433833]
[1749413965363,0.2903214,106300.0,106290.0,1.62749833]
[1749413965554,0.64949162,106300.0,106290.0,2.05433833]
[1749413966361,0.2903214,106300.0,106290.0,2.05433833]
[1749413966555,0.64949162,106300.0,106290.0,1.92131599]
[1749413966956,0.64949162,106300.0,106290.0,1.96627305]
[1749413967260,0.64949162,106300.0,106290.0,1.53943305]
[1749413967462,0.64949162,106300.0,106290.0,1.96627305]
[1749413968759,0.64949162,106300.0,106290.0,1.53943305]
[1749413968962,0.64949162,106300.0,106290.0,1.96627305]
[1749413969260,0.2903214,106300.0,106290.0,1.96627305]
[1749413969461,0.64949162,106300.0,106290.0,1.53943305]
[1749413969650,0.64949162,106300.0,106290.0,1.96627305]
[1749413971464,0.64949162,106300.0,106290.0,1.53943305]
[1749413971760,0.64949162,106300.0,106290.0,1.96627305]
[1749413972063,0.64949162,106300.0,106290.0,1.24467305]
[1749413972262,0.64949162,106300.0,106290.0,1.53943305]
[1749413972460,0.64949162,106300.0,106290.0,1.96627305]
[1749413972863,0.64949162,106300.0,106290.0,1.53943305]
[1749413973059,0.64949162,106300.0,106290.0,1.96627305]
[1749413973261,0.64949162,106300.0,106290.0,1.92131599]
[1749413973459,0.64949162,106300.0,106290.0,2.05433833]
[1749413974264,0.2903214,106300.0,106290.0,2.05433833]
[1749413974468,0.64949162,106300.0,106290.0,2.05433833]
[1749413975059,0.64949162,106300.0,106290.0,1.67245539]
[1749413975757,0.64949162,106300.0,106290.0,2.05440485]
[1749413977366,0.64949162,106300.0,106290.0,1.62756485]
[1749413977573,0.64949162,106300.0,106290.0,2.05440485]
[1749413978465,0.64949162,106300.0,106290.0,1.62756485]
[1749413978667,0.64949162,106300.0,106290.0,2.05440485]
[1749413982268,0.2903214,106300.0,106290.0,2.05440485]
[1749413982463,0.46145022,106300.0,106290.0,2.05440485]
[1749413982670,0.64949322,106300.0,106290.0,2.05440485]
[1749413983969,0.64949322,106300.0,106290.0,1.33280485]
[1749413984166,0.64949322,106300.0,106290.0,2.05440485]
[1749413984564,0.64950372,106300.0,106290.0,2.05440485]
[1749413988971,0.64942372,106300.0,106290.0,2.05440485]
[1749413992668,0.64942372,106300.0,106290.0,1.62756485]
[1749413992875,0.64942372,106300.0,106290.0,2.05444485]
[1749413993173,0.64942372,106300.0,106290.0,1.62756485]
[1749413993368,0.64942372,106300.0,106290.0,2.05480485]
[1749413993774,0.64942372,106300.0,106290.0,1.67285539]
[1749413994173,0.64942372,106300.0,106290.0,1.24561539]
[1749413994374,0.64942372,106300.0,106290.0,1.67297539]
[1749413997070,0.64942372,106300.0,106290.0,1.67289539]
[1749413997574,0.82900883,106300.0,106290.0,1.96668299]
[1749413997778,0.82900883,106300.0,106290.0,1.53940299]
[1749413997977,0.85920883,106300.0,106290.0,1.96668299]
[1749413998169,0.85920883,106300.0,106290.0,0.83526599]
[1749413998374,1.75808523,106300.0,106280.0,0.67573706]
[1749413998580,0.61044352,106290.0,106280.0,0.67573706]
[1749413998779,0.64104352,106290.0,106280.0,0.86382806]
[1749413998976,0.66023181,106290.0,106280.0,0.188091]
[1749413999479,0.4806467,106290.0,106280.0,0.188091]
[1749413999880,0.49010092,106290.0,106280.0,0.188091]
[1749414000283,0.49010092,106290.0,106280.0,0.26297965]
[1749414000473,0.66968603,106290.0,106280.0,0.26297965]
[1749414000875,0.67068603,106290.0,106280.0,0.26297965]
[1749414002082,0.67168603,106290.0,106280.0,0.26297965]
[1749414005186,0.67168603,106290.0,106280.0,0.26702843]
[1749414006389,0.67168603,106290.0,106280.0,0.47222375]
[1749414008185,0.67168603,106290.0,106280.0,0.47222385]
[1749414009884,0.67168603,106290.0,106280.0,0.28413275]
[1749414010086,0.67168603,106290.0,106280.0,0.47222395]
[1749414010286,0.67168603,106290.0,106280.0,0.26702863]
[1749414012391,0.67168603,106290.0,106280.0,0.29802863]
[1749414014594,0.67168603,106290.0,106280.0,0.10993743]
[1749414014898,0.67168603,106290.0,106280.0,0.29802863]
[1749414015693,0.67168603,106290.0,106280.0,0.10993743]
[1749414015993,0.67168603,106290.0,106280.0,0.29802863]
[1749414016193,0.67168603,106290.0,106280.0,0.32912863]
[1749414016995,0.63868603,106290.0,106280.0,0.32912863]
[1749414017396,0.60808603,106290.0,106280.0,0.32912863]
[1749414017593,0.60808603,106290.0,106280.0,0.36032863]
[1749414021502,0.57788603,106290.0,106280.0,0.36032863]
[1749414022891,0.4874467,106290.0,106280.0,0.36032863]
[1749414023101,0.67631917,106290.0,106280.0,0.36032863]
[1749414023300,0.66703181,106290.0,106280.0,0.36032863]
[1749414023500,0.20926159,106290.0,106280.0,0.72112863]
[1749414023794,0.4874467,106290.0,106280.0,0.72112863]
[1749414023999,0.67651446,106290.0,106280.0,0.72112863]
[1749414024306,0.4876467,106290.0,106280.0,0.72112863]
[1749414025004,0.3890467,106290.0,106280.0,0.72112863]
[1749414025202,0.30806159,106290.0,106280.0,0.81521528]
[1749414025406,0.4874467,106290.0,106280.0,0.81521528]
[1749414025607,0.4876467,106290.0,106280.0,0.81521528]
[1749414026003,0.3890467,106290.0,106280.0,0.81521528]
[1749414026203,0.3890467,106290.0,106280.0,1.24297528]
[1749414026907,0.4876467,106290.0,106280.0,1.24297528]
[1749414028507,0.4876469,106290.0,106280.0,1.24297528]
[1749414029008,0.4874469,106290.0,106280.0,1.53676288]
[1749414029199,0.2995734,106290.0,106280.0,1.74224707]
[1749414029399,0.4874469,106290.0,106280.0,1.74224707]
[1749414029602,0.4876469,106290.0,106280.0,1.74224707]
[1749414030409,0.4876469,106290.0,106280.0,1.24297528]
[1749414031219,0.2009734,106290.0,106280.0,1.24297528]
[1749414031416,0.4876469,106290.0,106280.0,1.24297528]
[1749414032117,0.46845861,106290.0,106280.0,1.24297528]
[1749414032418,0.36985861,106290.0,106280.0,1.24297528]
[1749414032620,0.46845821,106290.0,106280.0,1.24297528]
[1749414032922,0.46845821,106290.0,106280.0,1.53987528]
[1749414033318,0.36985821,106290.0,106280.0,1.53987528]
[1749414033521,0.1008,106290.0,106280.0,1.53987528]
[1749414033819,0.28038511,106290.0,106280.0,1.53987528]
[1749414035023,0.18178511,106290.0,106280.0,1.53987528]
[1749414035227,0.28038511,106290.0,106280.0,1.74535947]
[1749414035620,0.46845821,106290.0,106280.0,1.74535947]
[1749414035818,0.0022,106290.0,106280.0,1.92494458]
[1749414036018,0.333684,106300.0,106290.0,0.1880731]
[1749414036212,0.51326911,106300.0,106290.0,0.6448731]
[1749414036718,0.51346911,106300.0,106290.0,0.7483127]
[1749414037118,0.51346911,106300.0,106290.0,1.1756727]
[1749414037623,0.51546911,106300.0,106290.0,0.7483127]
[1749414037824,0.51746911,106300.0,106290.0,0.7483127]
[1749414038024,0.51746911,106300.0,106290.0,1.1756327]
[1749414039326,0.51746911,106300.0,106290.0,1.1755927]
[1749414039922,0.337884,106300.0,106290.0,1.1755927]
[1749414040123,0.51746911,106300.0,106290.0,1.1755927]
[1749414042030,0.51746911,106300.0,106290.0,0.7483127]
[1749414042230,0.51746911,106300.0,106290.0,1.1755927]
[1749414043127,0.18378511,106300.0,106290.0,1.35517781]
[1749414043426,0.47020061,106300.0,106290.0,1.1755927]
[1749414043626,0.47040061,106300.0,106290.0,1.1755927]
[1749414043824,0.47040061,106300.0,106290.0,1.35517781]
[1749414044324,0.47040061,106300.0,106290.0,1.1755927]
[1749414044726,0.2908155,106300.0,106290.0,1.1755927]
[1749414045023,0.47040061,106300.0,106290.0,1.4724927]
[1749414045229,0.0042,106300.0,106290.0,1.4724927]
[1749414045524,0.37184051,106300.0,106290.0,1.4724927]
[1749414045921,0.37184051,106300.0,106290.0,1.0452127]
[1749414046124,0.37184051,106300.0,106290.0,1.4727327]
[1749414046326,0.37184051,106300.0,106290.0,1.0452127]
[1749414046619,0.37184051,106300.0,106290.0,1.4726927]
[1749414046823,0.37184051,106300.0,106290.0,1.0452127]
[1749414047019,0.37184051,106300.0,106290.0,1.4726927]
[1749414047829,0.37184051,106300.0,106290.0,1.0452127]
[1749414048026,0.37184051,106300.0,106290.0,1.7664403]
[1749414048633,0.37184051,106300.0,106290.0,1.6777361]
[1749414050726,0.37184051,106300.0,106290.0,1.68178488]
[1749414051636,0.37184051,106300.0,106290.0,1.25434488]
[1749414051832,0.37184051,106300.0,106290.0,1.68190488]
[1749414052229,0.37184051,106300.0,106290.0,1.25434488]
[1749414052723,0.37184051,106300.0,106290.0,1.47682148]
[1749414053135,0.37184051,106300.0,106290.0,1.46746853]
[1749414053334,0.55142562,106300.0,106290.0,1.10666853]
[1749414053536,0.64762562,106300.0,106290.0,1.10666853]
[1749414053739,0.64762562,106300.0,106290.0,1.10706853]
[1749414054534,0.64762562,106300.0,106290.0,1.31215193]
[1749414054736,0.64762562,106300.0,106290.0,1.10706853]
[1749414055338,0.64762562,106300.0,106290.0,1.31215193]
[1749414057142,0.64762562,106300.0,106290.0,0.95135193]
[1749414057346,0.64762562,106300.0,106290.0,1.31215193]
[1749414057838,0.2884554,106300.0,106290.0,1.31215193]
[1749414058039,0.64762562,106300.0,106290.0,1.34215193]
[1749414058639,0.64762562,106300.0,106290.0,1.13706853]
[1749414060640,0.64762562,106300.0,106290.0,1.43085613]
[1749414061643,0.58442562,106300.0,106290.0,1.43085613]
[1749414061844,0.58442562,106300.0,106290.0,1.46265613]
[1749414062141,0.58442562,106300.0,106290.0,1.16886853]
[1749414062743,0.58442562,106300.0,106290.0,1.46265613]
[1749414063241,0.58442562,106300.0,106290.0,1.10185613]
[1749414063444,0.58442562,106300.0,106290.0,1.82345613]
[1749414065745,0.58442562,106300.0,106290.0,1.10185613]
[1749414065939,0.58442562,106300.0,106290.0,1.82345613]
[1749414066135,0.58442562,106300.0,106290.0,1.52966853]
[1749414068341,0.68314562,106300.0,106290.0,1.52966853]
[1749414069042,0.68314562,106300.0,106290.0,1.82345613]
[1749414069242,0.50356051,106300.0,106290.0,1.82345613]
[1749414069442,0.65014562,106300.0,106290.0,1.82345613]
[1749414070847,0.65014562,106300.0,106290.0,1.10185613]
[1749414071148,0.65014562,106300.0,106290.0,1.82345613]
[1749414071649,0.65014562,106300.0,106290.0,1.10185613]
[1749414072047,0.65014562,106300.0,106290.0,1.82345613]
[1749414075955,0.65014562,106300.0,106290.0,1.10185613]
[1749414076153,0.65014562,106300.0,106290.0,1.82345613]
[1749414076354,0.65014562,106300.0,106290.0,1.10185613]
[1749414076555,0.65014562,106300.0,106290.0,1.82345613]
[1749414078159,0.65014562,106300.0,106290.0,1.52966853]
[1749414079057,0.47056051,106300.0,106290.0,1.52966853]
[1749414079458,0.65014562,106300.0,106290.0,1.52966853]
[1749414080862,0.65014562,106300.0,106290.0,1.56729853]
[1749414081659,0.65014562,106300.0,106290.0,1.52029853]
[1749414081954,0.65014562,106300.0,106290.0,0.79869853]
[1749414082159,0.65014562,106300.0,106290.0,1.52029853]
[1749414087065,0.65014562,106300.0,106290.0,1.81408613]
[1749414087365,0.65014562,106300.0,106290.0,1.09248613]
[1749414087566,0.65014562,106300.0,106290.0,1.81408613]
[1749414088568,0.65014562,106300.0,106290.0,1.52029853]
[1749414090872,0.65014562,106300.0,106290.0,1.81411408]
[1749414091168,0.65014562,106300.0,106290.0,1.09251408]
[1749414091375,0.65014562,106300.0,106290.0,1.45331408]
[1749414091670,0.65014562,106300.0,106290.0,1.09251408]
[1749414091871,0.65014562,106300.0,106290.0,1.45331408]
[1749414092373,0.65014562,106300.0,106290.0,1.09251408]
[1749414092671,0.65014562,106300.0,106290.0,1.45331408]
[1749414097778,0.65014562,106300.0,106290.0,1.48155408]
[1749414098475,0.65014562,106300.0,106290.0,1.12075408]
[1749414098680,0.65014562,106300.0,106290.0,1.48155408]
[1749414100783,0.65014562,106300.0,106290.0,1.18773853]
[1749414103488,0.47056051,106300.0,106290.0,1.18773853]
[1749414103689,0.65014562,106300.0,106290.0,1.18773853]
[1749414103989,0.65014562,106300.0,106290.0,1.48153671]
[1749414109491,0.47056051,106300.0,106290.0,1.48153671]
[1749414110086,0.47056051,106300.0,106290.0,1.12073671]
[1749414110290,0.47056051,106300.0,106290.0,1.48153671]
[1749414111486,0.47056051,106300.0,106290.0,1.05357671]
[1749414111688,0.65014562,106300.0,106290.0,1.48049671]
[1749414112890,0.65014562,106300.0,106290.0,1.68616069]
[1749414113089,0.65014562,106300.0,106290.0,1.39236251]
[1749414113491,0.47056051,106300.0,106290.0,1.39236251]
[1749414116292,0.47056051,106300.0,106290.0,1.03156251]
[1749414116491,0.47056051,106300.0,106290.0,1.39236251]
[1749414117898,0.47056051,106300.0,106290.0,1.03156251]
[1749414118092,0.47056051,106300.0,106290.0,1.39236251]
[1749414121090,0.47056051,106300.0,106290.0,1.18669853]
[1749414121599,0.47056051,106300.0,106290.0,1.48049671]
[1749414122289,0.47056051,106300.0,106290.0,1.11969671]
[1749414122490,0.47056051,106300.0,106290.0,1.48049671]
[1749414127708,0.47056051,106300.0,106290.0,1.11969671]
[1749414127912,0.47056051,106300.0,106290.0,1.48049671]
[1749414128409,0.2909754,106300.0,106290.0,1.48049671]
[1749414128610,0.47056051,106300.0,106290.0,1.48049671]
[1749414130406,0.47056051,106300.0,106290.0,1.11969671]
[1749414130606,0.47056051,106300.0,106290.0,1.48049671]
[1749414133912,0.47056051,106300.0,106290.0,1.18669853]
[1749414134507,0.47056051,106300.0,106290.0,1.48052698]
[1749414134807,0.2909754,106300.0,106290.0,1.48052698]
[1749414135009,0.47056051,106300.0,106290.0,1.48052698]
[1749414139713,0.47056051,106300.0,106290.0,1.11972698]
[1749414140118,0.47056051,106300.0,106290.0,1.48052698]
[1749414140620,0.47056051,106300.0,106290.0,1.68620718]
[1749414140815,0.47056051,106300.0,106290.0,1.39237873]
[1749414141318,0.2909754,106300.0,106290.0,1.39237873]
[1749414141520,0.47056051,106300.0,106290.0,1.39237873]
[1749414146726,0.47056051,106300.0,106290.0,1.03157873]
[1749414146926,0.47056051,106300.0,106290.0,1.39237873]
[1749414149618,0.47056051,106300.0,106290.0,1.18669853]
[1749414149820,0.47056051,106300.0,106290.0,1.48052698]
[1749414152033,0.47056051,106300.0,106290.0,1.11972698]
[1749414152331,0.47056051,106300.0,106290.0,1.48052698]
[1749414153636,0.47056051,106300.0,106290.0,1.11972698]
[1749414153837,0.47056051,106300.0,106290.0,1.48052698]
[1749414156032,0.2909754,106300.0,106290.0,1.48052698]
[1749414156240,0.47056051,106300.0,106290.0,1.48052698]
[1749414156733,0.2909754,106300.0,106290.0,1.48052698]
[1749414156938,0.47056051,106300.0,106290.0,1.48052698]
[1749414158245,0.47056051,106300.0,106290.0,1.18669853]
[1749414158446,0.47008051,106300.0,106290.0,1.18669853]
[1749414158942,0.47008051,106300.0,106290.0,0.75977853]
[1749414159148,0.47008051,106300.0,106290.0,1.18729853]
[1749414161445,0.47008051,106300.0,106290.0,0.75977853]
[1749414161645,0.47008051,106300.0,106290.0,1.18725853]
[1749414162948,0.47008051,106300.0,106290.0,0.82645853]
[1749414163352,0.47008051,106300.0,106290.0,1.18725853]
[1749414164944,0.47008051,106300.0,106290.0,0.82645853]
[1749414165245,0.47008051,106300.0,106290.0,1.18725853]
[1749414165450,0.47008051,106300.0,106290.0,0.82645853]
[1749414165650,0.47008051,106300.0,106290.0,1.18725853]
[1749414167151,0.47008051,106300.0,106290.0,1.39293519]
[1749414168055,0.2904954,106300.0,106290.0,1.39293519]
[1749414168254,0.47008051,106300.0,106290.0,1.39293519]
[1749414169154,0.47008051,106300.0,106290.0,1.18725853]
[1749414169449,0.47008051,106300.0,106290.0,0.82645853]
[1749414169652,0.47008051,106300.0,106290.0,1.18725853]
[1749414175658,0.47008051,106300.0,106290.0,0.82645853]
[1749414175847,0.47008051,106300.0,106290.0,1.18725853]
[1749414177164,0.47008051,106300.0,106290.0,1.48108086]
[1749414179664,0.47008051,106300.0,106290.0,1.12028086]
[1749414179960,0.47008051,106300.0,106290.0,1.48108086]
[1749414181262,0.47008051,106300.0,106290.0,1.18725853]
[1749414183065,0.47008051,106300.0,106290.0,0.82645853]
[1749414183260,0.47008051,106300.0,106290.0,1.18725853]
[1749414187266,0.37184051,106300.0,106290.0,1.18725853]
[1749414187460,0.47012051,106300.0,106290.0,1.18725853]
[1749414188172,0.47012051,106300.0,106290.0,0.82645853]
[1749414188362,0.47012051,106300.0,106290.0,1.18725853]
[1749414189156,0.47012051,106300.0,106290.0,0.82645853]
[1749414189359,0.47012051,106300.0,106290.0,1.18725853]
[1749414189665,0.47012051,106300.0,106290.0,1.48108086]
[1749414189867,0.64970562,106300.0,106290.0,1.48108086]
[1749414191868,0.64970562,106300.0,106290.0,1.12028086]
[1749414192168,0.64970562,106300.0,106290.0,1.48108086]
[1749414194274,0.28206511,106300.0,106290.0,1.66066597]
[1749414194463,0.46992551,106300.0,106290.0,1.66066597]
[1749414194659,0.47012551,106300.0,106290.0,1.66066597]
[1749414194869,0.46992551,106300.0,106290.0,1.66066597]
[1749414195060,0.47012551,106300.0,106290.0,1.66066597]
[1749414195965,0.46992551,106300.0,106290.0,1.66066597]
[1749414196169,0.47012551,106300.0,106290.0,1.66066597]
[1749414198768,0.47012551,106300.0,106290.0,1.23318597]
[1749414198969,0.47012551,106300.0,106290.0,1.66010597]
[1749414199171,0.47012551,106300.0,106290.0,2.02090597]
[1749414199973,0.37184551,106300.0,106290.0,2.02090597]
[1749414200179,0.47012551,106300.0,106290.0,1.72708364]
[1749414200367,0.47012551,106300.0,106290.0,1.30016364]
[1749414200671,0.47012551,106300.0,106290.0,1.72708364]
[1749414208783,0.47012551,106300.0,106290.0,1.54749853]
[1749414209176,0.47012551,106300.0,106290.0,1.84132086]
[1749414213285,0.47012551,106300.0,106290.0,1.54749853]
[1749414214383,0.47012551,106300.0,106290.0,0.82589853]
[1749414214587,0.47012551,106300.0,106290.0,1.54749853]
[1749414217684,0.47012551,106300.0,106290.0,0.82589853]
[1749414217886,0.47012551,106300.0,106290.0,1.54749853]
[1749414219888,0.47012551,106300.0,106290.0,1.00548364]
[1749414220091,0.47012551,106300.0,106290.0,1.72708364]
[1749414221193,0.47012551,106300.0,106290.0,1.00548364]
[1749414221397,0.47012551,106300.0,106290.0,1.72708364]
[1749414222097,0.47012551,106300.0,106290.0,2.1090331]
[1749414223299,0.47012551,106300.0,106290.0,1.72708364]
[1749414223596,0.47008551,106300.0,106290.0,1.72708364]
[1749414224993,0.47008551,106300.0,106290.0,1.00548364]
[1749414225193,0.47008551,106300.0,106290.0,1.72708364]
[1749414228406,0.47008551,106300.0,106290.0,2.02088033]
[1749414228595,0.2905004,106300.0,106290.0,2.02088033]
[1749414229103,0.47008551,106300.0,106290.0,2.02088033]
[1749414233808,0.47008551,106300.0,106290.0,1.84129522]
[1749414235703,0.47008551,106300.0,106290.0,1.11969522]
[1749414236009,0.47008551,106300.0,106290.0,1.84129522]
[1749414236809,0.47008551,106300.0,106290.0,1.54749853]
[1749414239512,0.47008551,106300.0,106290.0,1.84129522]
[1749414240014,0.47008551,106300.0,106290.0,2.04696687]
[1749414240313,0.64967062,106300.0,106290.0,1.75317018]
[1749414246721,0.64967062,106300.0,106290.0,1.03157018]
[1749414246909,0.64967062,106300.0,106290.0,1.75317018]
[1749414247720,0.64967062,106300.0,106290.0,1.03157018]
[1749414247920,0.64967062,106300.0,106290.0,1.75317018]
[1749414248518,0.64967062,106300.0,106290.0,1.54749853]
[1749414248718,0.64967062,106300.0,106290.0,1.11969522]
[1749414249223,0.64967062,106300.0,106290.0,1.84129522]
[1749414251621,0.64967062,106300.0,106290.0,1.54749853]
[1749414254921,0.64967062,106300.0,106290.0,1.92944799]
[1749414255924,0.64967062,106300.0,106290.0,1.54749853]
[1749414260526,0.64967062,106300.0,106290.0,1.18669853]
[1749414263118,0.64967062,106300.0,106290.0,0.75977853]
[1749414263319,0.64967062,106300.0,106290.0,1.44864949]
[1749414263523,0.68007062,106300.0,106290.0,1.44864949]
[1749414265728,0.68007062,106300.0,106290.0,1.47964949]
[1749414266218,0.3209004,106300.0,106290.0,1.47964949]
[1749414266424,0.2905004,106300.0,106290.0,1.47964949]
[1749414266624,0.64967062,106300.0,106290.0,1.47964949]
[1749414267625,0.2905004,106300.0,106290.0,1.47964949]
[1749414267827,0.64967062,106300.0,106290.0,1.47964949]
[1749414268323,0.64967062,106300.0,106290.0,1.11884949]
[1749414268528,0.64967062,106300.0,106290.0,1.47964949]
[1749414271529,0.64967062,106300.0,106290.0,1.11884949]
[1749414271728,0.64967062,106300.0,106290.0,1.47964949]
[1749414274229,0.64967062,106300.0,106290.0,1.11884949]
[1749414274429,0.64967062,106300.0,106290.0,1.47964949]
[1749414274629,0.64967062,106300.0,106290.0,1.05276949]
[1749414275029,0.64967062,106300.0,106290.0,1.47980949]
[1749414275329,0.64967062,106300.0,106290.0,1.05276949]
[1749414276329,0.64967062,106300.0,106290.0,1.47976949]
[1749414276731,0.64967062,106300.0,106290.0,1.05276949]
[1749414276927,0.64967062,106300.0,106290.0,1.47972949]
[1749414277425,0.64967062,106300.0,106290.0,1.05276949]
[1749414277630,0.64967062,106300.0,106290.0,1.47972949]
[1749414277932,0.64967062,106300.0,106290.0,1.05276949]
[1749414278130,0.64967062,106300.0,106290.0,1.47972949]
[1749414278331,0.64967062,106300.0,106290.0,1.05276949]
[1749414278533,0.64967062,106300.0,106290.0,1.47968949]
[1749414279125,0.64967062,106300.0,106290.0,1.47972949]
[1749414279631,0.64967062,106300.0,106290.0,1.05276949]
[1749414279931,0.64967062,106300.0,106290.0,1.47972949]
[1749414280127,0.47008551,106300.0,106290.0,1.47972949]
[1749414280325,0.47008551,106300.0,106290.0,1.05276949]
[1749414280729,0.47012551,106300.0,106290.0,1.05276949]
[1749414281028,0.47012551,106300.0,106290.0,1.47968949]
[1749414281228,0.37184551,106300.0,106290.0,1.6592746]
[1749414281424,0.46992551,106300.0,106290.0,1.6592746]
[1749414281632,0.47012551,106300.0,106290.0,1.6592746]
[1749414281824,0.46992551,106300.0,106290.0,1.2323546]
[1749414282020,0.47012551,106300.0,106290.0,1.6595546]
[1749414282425,0.10248,106300.0,106290.0,1.6595546]
[1749414282726,0.28206511,106300.0,106290.0,1.6595546]
[1749414283123,0.46992541,106300.0,106290.0,1.6595546]
[1749414283327,0.47012541,106300.0,106290.0,1.6595546]
[1749414284138,0.47012541,106300.0,106290.0,2.0203546]
[1749414284332,0.28206511,106300.0,106290.0,2.0203546]
[1749414284834,0.47012541,106300.0,106290.0,2.0203546]
[1749414291640,0.47012541,106300.0,106290.0,1.84076949]
[1749414291832,0.47012541,106300.0,106290.0,2.0203546]
[1749414295643,0.47012541,106300.0,106290.0,1.84076949]
[1749414295844,0.47012541,106300.0,106290.0,2.0203546]
[1749414298137,0.64971052,106300.0,106290.0,2.0201946]
[1749414299139,0.64971052,106300.0,106290.0,1.5931546]
[1749414299542,0.64971052,106300.0,106290.0,2.0202346]
[1749414300044,0.64971052,106300.0,106290.0,2.0201946]
[1749414300846,0.64971052,106300.0,106290.0,1.84060949]
[1749414305855,0.2905403,106300.0,106290.0,1.84060949]
[1749414306050,0.64971052,106300.0,106290.0,1.84060949]
[1749414309160,0.64971052,106300.0,106290.0,1.11900949]
[1749414309459,0.64971052,106300.0,106290.0,1.84060949]
[1749414310261,0.47012541,106300.0,106290.0,2.0201946]
[1749414312764,0.47012541,106300.0,106290.0,1.2985946]
[1749414313061,0.64971052,106300.0,106290.0,2.0201946]
[1749414313262,0.64971052,106300.0,106290.0,2.0200346]
[1749414313762,0.47012541,106300.0,106290.0,2.0200346]
[1749414314157,0.47012541,106300.0,106290.0,1.2984346]
[1749414314361,0.47012541,106300.0,106290.0,2.0200346]
[1749414317262,0.47012541,106300.0,106290.0,2.0201146]
[1749414318868,0.47012541,106300.0,106290.0,1.2985146]
[1749414319068,0.47012541,106300.0,106290.0,2.0201146]
[1749414320066,0.47012541,106300.0,106290.0,1.2985146]
[1749414320266,0.47012541,106300.0,106290.0,2.0200346]
[1749414321368,0.47012541,106300.0,106290.0,1.2984346]
[1749414321567,0.47012541,106300.0,106290.0,1.72624364]
[1749414321968,0.47012541,106300.0,106290.0,1.00464364]
[1749414322267,0.47012541,106300.0,106290.0,1.72624364]
[1749414322564,0.47012541,106300.0,106290.0,1.29936364]
[1749414323070,0.47012541,106300.0,106290.0,1.72624364]
[1749414323570,0.47012541,106300.0,106290.0,1.00464364]
[1749414323769,0.47012541,106300.0,106290.0,1.72624364]
[1749414324968,0.47012541,106300.0,106290.0,2.0200424]
[1749414325770,0.47012541,106300.0,106290.0,1.2984424]
[1749414326072,0.47012541,106300.0,106290.0,2.0200424]
[1749414328071,0.47012541,106300.0,106290.0,1.5931624]
[1749414328270,0.47012541,106300.0,106290.0,2.0200424]
[1749414328569,0.47012541,106300.0,106290.0,1.84045729]
[1749414330473,0.64971052,106300.0,106290.0,1.84045729]
[1749414330772,0.64971052,106300.0,106290.0,1.11885729]
[1749414330973,0.64971052,106300.0,106290.0,1.84045729]
[1749414334376,0.64971052,106300.0,106290.0,1.41357729]
[1749414334577,0.64971052,106300.0,106290.0,1.84045729]
[1749414334879,0.64971052,106300.0,106290.0,1.41357729]
[1749414335274,0.64971052,106300.0,106290.0,1.84045729]
[1749414335578,0.64971052,106300.0,106290.0,1.11885729]
[1749414335771,0.64971052,106300.0,106290.0,1.41357729]
[1749414335971,0.64971052,106300.0,106290.0,1.84045729]
[1749414336676,0.47012541,106300.0,106290.0,1.84045729]
[1749414336878,0.47012541,106300.0,106290.0,1.54665853]
[1749414340080,0.47012541,106300.0,106290.0,0.82505853]
[1749414340282,0.47012541,106300.0,106290.0,1.54665853]
[1749414342680,0.47012541,106300.0,106290.0,0.82505853]
[1749414342987,0.47012541,106300.0,106290.0,1.54665853]
[1749414343784,0.47012541,106300.0,106290.0,0.82505853]
[1749414343989,0.47012541,106300.0,106290.0,1.54665853]
[1749414345385,0.47012541,106300.0,106290.0,1.84045729]
[1749414346883,0.47012541,106300.0,106290.0,1.11885729]
[1749414347079,0.47012541,106300.0,106290.0,1.84045729]
[1749414348284,0.64971052,106300.0,106290.0,1.84045729]
[1749414348988,0.64971052,106300.0,106290.0,1.41357729]
[1749414349292,0.64971052,106300.0,106290.0,1.84041729]
[1749414349481,0.64971052,106300.0,106290.0,1.54661853]
[1749414349988,0.64971052,106300.0,106290.0,1.92856799]
[1749414352587,0.64971052,106300.0,106290.0,1.92451921]
[1749414353286,0.64971052,106300.0,106290.0,1.56371921]
[1749414353784,0.64971052,106300.0,106290.0,1.56776799]
[1749414354089,0.2905403,106300.0,106290.0,1.56776799]
[1749414354388,0.64971052,106300.0,106290.0,1.56776799]
[1749414354691,0.2905403,106300.0,106290.0,1.56776799]
[1749414355086,0.47012541,106300.0,106290.0,1.56776799]
[1749414356284,0.2905403,106300.0,106290.0,1.56776799]
[1749414356488,0.47012541,106300.0,106290.0,1.7473531]
[1749414358590,0.47012541,106300.0,106290.0,1.3865531]
[1749414358782,0.47012541,106300.0,106290.0,1.7473531]
[1749414359089,0.47012541,106300.0,106290.0,1.3865531]
[1749414359286,0.47012541,106300.0,106290.0,1.7473531]
[1749414360386,0.47012541,106300.0,106290.0,1.3865531]
[1749414360584,0.47012541,106300.0,106290.0,1.7473531]
[1749414362789,0.64971052,106300.0,106290.0,1.7473531]
[1749414363492,0.64971052,106300.0,106290.0,1.3865531]
[1749414363678,0.64971052,106300.0,106290.0,1.7473531]
[1749414364395,0.64971052,106300.0,106290.0,1.3865531]
[1749414364594,0.64971052,106300.0,106290.0,1.7473531]
[1749414365087,0.64971052,106300.0,106290.0,1.14092799]
[1749414365292,0.64971052,106300.0,106290.0,1.56776799]
[1749414365698,0.64971052,106300.0,106290.0,1.18581853]
[1749414368096,0.47012541,106300.0,106290.0,0.93856364]
[1749414368296,0.47012541,106300.0,106290.0,1.36540364]
[1749414369494,0.47004541,106300.0,106290.0,1.51228795]
[1749414371398,0.47004541,106300.0,106290.0,1.51236795]
[1749414372898,0.47004541,106300.0,106290.0,1.51256795]
[1749414373497,0.47004541,106300.0,106290.0,1.15176795]
[1749414373698,0.47004541,106300.0,106290.0,1.44624795]
[1749414373997,0.47004541,106300.0,106290.0,1.29936364]
[1749414374698,0.28198511,106300.0,106290.0,1.72640364]
[1749414375699,0.28198511,106300.0,106290.0,1.29936364]
[1749414375900,0.28198511,106300.0,106290.0,1.72636364]
[1749414376093,0.28198511,106300.0,106290.0,1.29936364]
[1749414376294,0.28198511,106300.0,106290.0,1.72636364]
[1749414377401,0.28198511,106300.0,106290.0,1.93200929]
[1749414378098,0.47004531,106300.0,106290.0,1.93200929]
[1749414378301,0.47004531,106300.0,106290.0,1.93196929]
[1749414378902,0.47004531,106300.0,106290.0,1.21036929]
[1749414379099,0.47004531,106300.0,106290.0,1.93196929]
[1749414379403,0.47004531,106300.0,106290.0,1.93192929]
[1749414379595,0.47004531,106300.0,106290.0,1.72628364]
[1749414379898,0.47004531,106300.0,106290.0,2.02006314]
[1749414380399,0.47004531,106300.0,106290.0,2.4020126]
[1749414380599,0.47004531,106300.0,106290.0,2.1082331]